bitfinex/quotes_BTCUSD_20260307
["timestamp","ask_amount","ask_price","bid_price","bid_amount"]
[1772841601282,0.05974325,68099.0,68090.0,0.0056575]
[1772841601938,0.00011563,68106.0,68090.0,0.0066575]
[1772841602085,0.0001401,68114.0,68094.0,0.05518222]
[1772841602297,0.06065374,68114.0,68095.0,0.10274412]
[1772841602505,0.00014953,68114.0,68095.0,0.10274412]
[1772841602796,0.09973488,68122.0,68090.0,0.0056575]
[1772841602797,0.00022001,68122.0,68096.0,1.082431]
[1772841603009,0.00022001,68140.0,68096.0,1.082431]
[1772841603010,0.00022001,68140.0,68102.0,0.1242801]
[1772841603181,0.06050421,68127.0,68103.0,0.10274412]
[1772841603679,0.00022001,68140.0,68103.0,0.10274412]
[1772841603886,0.001,68122.0,68103.0,0.10293532]
[1772841604431,0.00022001,68140.0,68106.0,0.04082883]
[1772841604651,0.05996326,68149.0,68106.0,4.773422]
[1772841604860,0.05349328,68149.0,68109.0,0.10274412]
[1772841605068,0.05349328,68149.0,68107.0,4.613438]
[1772841605266,0.00144,68148.0,68112.0,1.649929]
[1772841605472,0.00775,68150.0,68114.0,3.212488]
[1772841605689,0.0001021,68151.0,68125.0,0.0004]
[1772841605886,0.0001021,68151.0,68129.0,0.10274412]
[1772841606104,0.0001021,68151.0,68132.0,0.04729012]
[1772841606279,0.0001021,68151.0,68135.0,0.10274412]
[1772841606500,0.05984535,68151.0,68136.0,0.01684741]
[1772841606696,0.05984535,68151.0,68137.0,0.10274412]
[1772841606898,0.05980604,68151.0,68137.0,0.11964448]
[1772841608665,0.05709798,68150.0,68136.0,0.07338049]
[1772841609144,0.07348318,68151.0,68138.0,0.01684709]
[1772841609298,0.07348318,68151.0,68139.0,0.10274412]
[1772841609493,0.07348318,68151.0,68138.0,0.10274412]
[1772841609848,0.07348318,68151.0,68139.0,0.01684709]
[1772841610048,0.00144,68150.0,68139.0,0.01684709]
[1772841610399,0.00144,68149.0,68139.0,0.01684709]
[1772841610597,0.00144,68149.0,68136.0,0.07338243]
[1772841610798,0.09951487,68147.0,68128.0,0.07355272]
[1772841610997,0.09951487,68145.0,68128.0,0.07355272]
[1772841611242,0.05853798,68144.0,68128.0,0.07355272]
[1772841611910,0.09951487,68145.0,68128.0,0.07355272]
[1772841612094,0.05853798,68144.0,68128.0,0.07355272]
[1772841612669,0.05709798,68143.0,68128.0,0.07355272]
[1772841612880,0.05853798,68143.0,68128.0,0.19537074]
[1772841613279,0.05709798,68143.0,68128.0,0.19537074]
[1772841613484,0.00144,68142.0,68128.0,0.19537074]
[1772841613855,0.05709798,68143.0,68128.0,0.19537074]
[1772841613856,0.00144,68141.0,68128.0,0.19537074]
[1772841615307,0.05709798,68139.0,68128.0,0.07355272]
[1772841615496,0.09951487,68139.0,68128.0,0.07355272]
[1772841615728,0.05709798,68138.0,68128.0,0.07355272]
[1772841616499,0.05709798,68138.0,68125.0,0.07379353]
[1772841616500,0.05709798,68137.0,68125.0,0.07379353]
[1772841617223,0.00144,68139.0,68127.0,0.12023686]
[1772841617419,0.00144,68139.0,68128.0,0.07339126]
[1772841617621,0.00144,68139.0,68130.0,0.01749274]
[1772841617801,0.00144,68138.0,68130.0,0.12023686]
[1772841619556,0.00144,68138.0,68130.0,0.07338803]
[1772841620737,0.07337728,68141.0,68130.0,0.07338803]
[1772841620961,0.05857798,68140.0,68130.0,0.07338803]
[1772841621657,0.05857798,68140.0,68128.0,0.07339126]
[1772841629097,0.05709798,68137.0,68125.0,0.07379394]
[1772841629379,0.05709798,68137.0,68128.0,0.0002]
[1772841631512,0.07338264,68136.0,68128.0,0.0002]
[1772841631713,0.05709798,68135.0,68128.0,0.0002]
[1772841631835,0.00148,68134.0,68128.0,0.0002]
[1772841632998,0.05857798,68134.0,68128.0,0.0002]
[1772841634065,0.13196334,68134.0,68128.0,0.0002]
[1772841636044,0.13196299,68134.0,68128.0,0.0002]
[1772841639851,0.00148,68135.0,68128.0,0.0002]
[1772841640351,0.00125984,68135.0,68128.0,0.0002]
[1772841642764,0.0736,68139.0,68128.0,0.0002]
[1772841643047,0.05421165,68138.0,68128.0,0.0002]
[1772841643938,0.05273165,68138.0,68128.0,0.0002]
[1772841644145,0.00148,68137.0,68128.0,0.0002]
[1772841644814,0.05421165,68137.0,68128.0,0.0002]
[1772841646285,0.00148,68137.0,68128.0,0.0002]
[1772841646702,0.07486188,68137.0,68128.0,0.0002]
[1772841647854,0.07338188,68137.0,68128.0,0.0002]
[1772841648184,0.00148,68136.0,68128.0,0.0002]
[1772841649502,0.00148,68135.0,68128.0,0.0002]
[1772841652903,0.05273165,68136.0,68128.0,0.0002]
[1772841653105,0.00148,68135.0,68128.0,0.0002]
[1772841653994,0.05273165,68136.0,68128.0,0.0002]
[1772841654170,0.00148,68135.0,68128.0,0.0002]
[1772841657624,0.05292431,68135.0,68128.0,0.0002]
[1772841661821,0.05314432,68135.0,68128.0,0.0002]
[1772841663620,0.00148,68134.0,68128.0,0.0002]
[1772841669332,0.09163448,68134.0,68128.0,0.0002]
[1772841671656,0.08989731,68133.0,68125.0,0.07379416]
[1772841672007,0.08989731,68132.0,68125.0,0.07339416]
[1772841672399,0.08989731,68132.0,68121.0,0.0735988]
[1772841681591,0.00148,68131.0,68121.0,0.0735988]
[1772841681793,0.09075802,68131.0,68121.0,0.0735988]
[1772841690119,0.08844041,68129.0,68114.0,0.29348652]
[1772841690339,0.08847049,68127.0,68116.0,0.07340348]
[1772841690679,0.1618639,68126.0,68114.0,0.0002]
[1772841690885,0.08995049,68125.0,68114.0,0.0002]
[1772841691182,0.08995049,68124.0,68114.0,0.0002]
[1772841691387,0.00148,68124.0,68114.0,0.0002]
[1772841691601,0.08995049,68124.0,68114.0,0.0002]
[1772841692100,0.08995049,68123.0,68114.0,0.0012]
[1772841692648,0.08995049,68123.0,68114.0,0.0002]
[1772841692851,0.08847049,68123.0,68114.0,0.0002]
[1772841693057,0.08995049,68123.0,68114.0,0.0002]
[1772841695179,0.08995049,68123.0,68112.0,0.0734085]
[1772841695180,0.00148,68123.0,68112.0,0.0734085]
[1772841695413,0.00148,68123.0,68112.0,0.16404998]
[1772841696272,0.00148,68123.0,68112.0,0.15404998]
[1772841697389,0.00148,68123.0,68112.0,0.14404998]
[1772841698501,0.09553929,68122.0,68112.0,0.0534085]
[1772841700214,0.09553929,68121.0,68112.0,0.0002]
[1772841704846,0.09535615,68130.0,68113.0,0.09064148]
[1772841705044,0.00148,68126.0,68113.0,0.09064148]
[1772841706128,0.00148,68126.0,68114.0,0.07340634]
[1772841707417,0.09532244,68125.0,68114.0,0.07360634]
[1772841708046,0.09680244,68125.0,68114.0,0.07360634]
[1772841712178,0.09530872,68124.0,68114.0,0.07360634]
[1772841713626,0.09529167,68122.0,68114.0,0.0002]
[1772841717623,0.00148,68121.0,68114.0,0.0002]
[1772841721381,0.07339988,68120.0,68107.0,0.07361318]
[1772841721634,0.09563626,68117.0,68107.0,0.00030193]
[1772841726009,0.16903967,68117.0,68108.0,0.07341281]
[1772841726461,0.08845535,68116.0,68108.0,0.07341281]
[1772841726634,0.07340341,68117.0,68108.0,0.07341281]
[1772841726635,0.00148,68115.0,68108.0,0.07341281]
[1772841733405,0.08993163,68115.0,68108.0,0.07341281]
[1772841735937,0.00148,68122.0,68109.0,0.087785]
[1772841736091,0.00148,68123.0,68109.0,0.087785]
[1772841740345,0.00148,68123.0,68110.0,0.07341065]
[1772841740542,0.00148,68123.0,68111.0,0.087785]
[1772841741165,0.09146784,68121.0,68110.0,0.07341065]
[1772841741371,0.00022001,68126.0,68111.0,0.089265]
[1772841741936,0.00034321,68131.0,68111.0,0.00148]
[1772841742142,0.00034321,68131.0,68112.0,0.087785]
[1772841742350,0.00148,68130.0,68112.0,0.087785]
[1772841742554,0.00022001,68123.0,68114.0,0.087785]
[1772841742977,0.00022001,68130.0,68113.0,0.07340742]
[1772841743315,0.00022001,68130.0,68114.0,0.087785]
[1772841743890,0.00022001,68130.0,68114.0,0.088785]
[1772841744439,0.00022001,68130.0,68114.0,0.087785]
[1772841744683,0.00022001,68130.0,68116.0,0.087785]
[1772841744841,0.00022001,68130.0,68117.0,0.089265]
[1772841745481,0.09056829,68129.0,68117.0,0.00148]
[1772841746751,0.07339126,68128.0,68118.0,0.07340203]
[1772841746956,0.16419279,68128.0,68118.0,0.07340203]
[1772841749459,0.16419279,68128.0,68116.0,0.07340203]
[1772841749761,0.00022001,68128.0,68116.0,0.07340203]
[1772841749963,0.00034321,68131.0,68117.0,0.087785]
[1772841750413,0.00022001,68135.0,68117.0,0.087785]
[1772841750414,0.00148,68134.0,68117.0,0.087785]
[1772841750760,0.00022001,68135.0,68117.0,0.087785]
[1772841750967,0.00170001,68135.0,68117.0,0.087785]
[1772841752424,0.00170001,68135.0,68118.0,0.07340203]
[1772841752629,0.00170001,68135.0,68119.0,0.08028688]
[1772841752832,0.00170001,68135.0,68121.0,0.08028688]
[1772841753956,0.00022001,68135.0,68121.0,0.08028688]
[1772841754937,0.00022001,68135.0,68122.0,0.07339772]
[1772841755111,0.00022001,68135.0,68122.0,0.1536846]
[1772841755310,0.00022001,68135.0,68123.0,0.08028688]
[1772841756910,0.00034321,68138.0,68123.0,0.08028688]
[1772841757114,0.00034321,68138.0,68125.0,0.08028688]
[1772841757446,0.00034321,68138.0,68127.0,0.08028688]
[1772841759000,0.00034321,68138.0,68128.0,0.07339126]
[1772841759279,0.00034321,68138.0,68128.0,0.15367814]
[1772841759625,0.00034321,68138.0,68128.0,0.07339126]
[1772841759828,0.00022001,68139.0,68129.0,0.08028688]
[1772841760062,0.09106783,68142.0,68129.0,0.08028688]
[1772841760063,0.00022001,68142.0,68129.0,0.08028688]
[1772841760256,0.00022001,68142.0,68129.0,0.08039447]
[1772841761032,0.00022001,68142.0,68129.0,0.08139447]
[1772841761236,0.00022001,68142.0,68130.0,0.0733891]
[1772841763440,0.09075896,68141.0,68130.0,0.0733891]
[1772841763754,0.09097897,68138.0,68130.0,0.0733891]
[1772841766694,0.09097897,68138.0,68129.0,0.07349669]
[1772841777419,0.00022001,68138.0,68129.0,0.07349669]
[1772841778028,0.0841922,68142.0,68129.0,0.07349669]
[1772841781196,0.08402169,68153.0,68130.0,0.08095557]
[1772841781395,0.04394628,68158.0,68132.0,0.01021906]
[1772841781597,0.04394628,68158.0,68136.0,0.01021906]
[1772841781796,0.04394628,68158.0,68139.0,0.08236011]
[1772841782086,0.04394628,68158.0,68141.0,0.09257917]
[1772841782296,0.04394628,68158.0,68142.0,0.15721629]
[1772841784784,0.04394628,68158.0,68143.0,0.08236011]
[1772841785981,0.04394628,68158.0,68144.0,0.07337403]
[1772841786512,0.04542628,68158.0,68144.0,0.07337403]
[1772841788878,0.04542628,68158.0,68144.0,0.15573414]
[1772841789009,0.04394628,68158.0,68144.0,0.15573414]
[1772841789207,0.04542628,68158.0,68144.0,0.15573414]
[1772841789497,0.04564629,68158.0,68144.0,0.15573414]
[1772841789883,0.07814732,68169.0,68144.0,0.07349783]
[1772841790103,0.00022001,68165.0,68145.0,0.08236011]
[1772841791116,0.00022001,68165.0,68147.0,0.08236011]
[1772841791317,0.00022001,68165.0,68149.0,0.08236011]
[1772841791813,0.00022001,68165.0,68149.0,0.08267221]
[1772841792345,0.00148,68171.0,68152.0,0.04229396]
[1772841792473,0.04526831,68173.0,68155.0,0.08236011]
[1772841792679,0.04400832,68172.0,68156.0,0.12630911]
[1772841793076,0.04400832,68172.0,68157.0,0.07336003]
[1772841793322,0.07480955,68169.0,68157.0,0.07336003]
[1772841793561,0.07480955,68169.0,68157.0,0.04557436]
[1772841793562,0.04378831,68166.0,68157.0,0.04557436]
[1772841793723,0.04378831,68164.0,68157.0,0.04557436]
[1772841794810,0.04378831,68164.0,68157.0,0.04568696]
[1772841796663,0.04378831,68164.0,68157.0,0.0001126]
[1772841802007,0.00148,68166.0,68157.0,0.0001126]
[1772841802214,0.00148,68166.0,68157.0,0.08260101]
[1772841802359,0.00186581,68169.0,68157.0,0.08260101]
[1772841802755,0.00038581,68169.0,68157.0,0.08260101]
[1772841804025,0.00038581,68169.0,68158.0,0.07335896]
[1772841804850,0.00038581,68169.0,68158.0,0.07347156]
[1772841805794,0.00022001,68172.0,68159.0,0.08248841]
[1772841805981,0.00022001,68172.0,68162.0,0.08248841]
[1772841805982,0.00011562,68172.0,68162.0,0.08248841]
[1772841806123,0.00011562,68172.0,68163.0,0.08248841]
[1772841806388,0.07355884,68177.0,68164.0,0.00148]
[1772841806590,0.07355884,68177.0,68164.0,0.0840609]
[1772841806794,0.00022001,68176.0,68164.0,0.0840609]
[1772841807303,0.00022001,68176.0,68164.0,0.04664997]
[1772841807475,0.00022001,68176.0,68165.0,0.08246528]
[1772841807686,0.04378831,68178.0,68165.0,0.08246528]
[1772841807885,1e-08,68180.0,68167.0,0.04505435]
[1772841808030,1e-08,68180.0,68171.0,0.12751963]
[1772841808240,1e-08,68180.0,68172.0,0.08394528]
[1772841808448,1e-08,68180.0,68173.0,0.04505435]
[1772841808664,1e-08,68180.0,68172.0,0.00148]
[1772841810774,1e-08,68180.0,68173.0,0.07334281]
[1772841812190,0.00148,68185.0,68173.0,0.15580809]
[1772841812422,0.00148,68185.0,68173.0,0.20086244]
[1772841813049,0.04378831,68190.0,68173.0,0.20086244]
[1772841813251,0.00148,68186.0,68173.0,0.20086244]
[1772841814670,0.04526831,68186.0,68173.0,0.20086244]
[1772841814866,0.04526831,68186.0,68173.0,0.07334281]
[1772841815219,0.04526831,68186.0,68166.0,0.07334946]
[1772841815220,0.04378831,68184.0,68168.0,0.07334819]
[1772841815616,0.04378831,68184.0,68167.0,0.07334819]
[1772841817672,0.07333206,68183.0,68165.0,0.07334819]
[1772841817823,0.04518812,68182.0,68165.0,0.07334819]
[1772841820428,0.04518812,68180.0,68165.0,0.15581347]
[1772841820640,0.00148,68179.0,68165.0,0.15581347]
[1772841820839,0.04518812,68178.0,68165.0,0.15581347]
[1772841821072,0.04518812,68178.0,68165.0,0.07334819]
[1772841822580,0.04518812,68178.0,68165.0,0.07354819]
[1772841826816,0.11852663,68178.0,68165.0,0.0002]
[1772841828232,0.07333851,68178.0,68165.0,0.0002]
[1772841835620,0.07333851,68178.0,68157.0,0.0002]
[1772841835829,0.07345407,68178.0,68157.0,0.0002]
[1772841837077,0.07345407,68178.0,68152.0,0.0001995]
[1772841839219,0.11648685,68177.0,68152.0,0.0001995]
[1772841839433,0.07345407,68178.0,68152.0,0.0001995]
[1772841839434,0.18994092,68178.0,68152.0,0.0001995]
[1772841839837,0.11648685,68177.0,68152.0,0.0001995]
[1772841840191,0.07333959,68176.0,68152.0,0.0001995]
[1772841840795,0.0004,68175.0,68143.0,0.0735751]
[1772841840995,0.0004,68175.0,68143.0,7.23e-05]
[1772841841225,0.11648685,68174.0,68143.0,7.23e-05]
[1772841841381,0.17748,68173.0,68143.0,7.23e-05]
[1772841842216,0.07334389,68172.0,68143.0,7.23e-05]
[1772841845072,0.17748,68171.0,68143.0,7.23e-05]
[1772841845270,0.17748,68171.0,68143.0,0.04445993]
[1772841847534,0.07334604,68170.0,68143.0,7.23e-05]
[1772841850409,0.07334604,68170.0,68144.0,0.04394912]
[1772841850615,0.00148,68169.0,68146.0,0.04394912]
[1772841850825,0.00148,68168.0,68150.0,0.04394912]
[1772841851263,0.00148,68168.0,68150.0,0.08246528]
[1772841851493,0.00148,68168.0,68151.0,0.04394912]
[1772841851686,0.07334927,68167.0,68151.0,0.04394912]
[1772841852460,0.07334927,68167.0,68151.0,0.04406742]
[1772841853638,0.07334927,68167.0,68149.0,1e-08]
[1772841857315,0.07434927,68167.0,68149.0,1e-08]
[1772841859578,0.07334927,68167.0,68149.0,1e-08]
[1772841859737,0.07434927,68167.0,68149.0,1e-08]
[1772841859936,0.07334927,68167.0,68149.0,1e-08]
[1772841860403,0.07434927,68167.0,68149.0,1e-08]
[1772841860568,0.07334927,68167.0,68149.0,1e-08]
[1772841860989,0.07434927,68167.0,68149.0,1e-08]
[1772841861293,0.07334927,68167.0,68149.0,1e-08]
[1772841861523,0.07334927,68167.0,68151.0,0.04334349]
[1772841861524,0.07434927,68167.0,68151.0,0.04334349]
[1772841861706,0.00148,68166.0,68153.0,0.04334349]
[1772841861905,0.04241741,68164.0,68149.0,1e-08]
[1772841862712,0.04241741,68164.0,68149.0,0.04034343]
[1772841864100,0.0269209,68162.0,68149.0,0.04034343]
[1772841865436,0.07335357,68163.0,68149.0,0.04034343]
[1772841866849,0.00148,68162.0,68153.0,0.04309023]
[1772841867047,0.00148,68161.0,68155.0,0.04309023]
[1772841867530,0.07335357,68164.0,68155.0,0.04309023]
[1772841867731,0.00148,68163.0,68155.0,0.04309023]
[1772841868078,0.0733525,68167.0,68155.0,0.04309023]
[1772841868378,0.00148,68162.0,68155.0,0.04309023]
[1772841868529,0.11576991,68167.0,68154.0,0.08246528]
[1772841868737,0.00148,68166.0,68154.0,0.08246528]
[1772841869222,0.04389741,68166.0,68154.0,0.08246528]
[1772841870167,0.07335142,68165.0,68154.0,0.08246528]
[1772841870367,0.07335142,68165.0,68150.0,0.04034342]
[1772841870645,0.11576883,68165.0,68150.0,0.10889374]
[1772841871176,0.11576883,68165.0,68150.0,0.182261]
[1772841871977,0.07335142,68165.0,68150.0,0.182261]
[1772841872178,0.11576883,68165.0,68150.0,0.182261]
[1772841872385,0.11576883,68165.0,68150.0,0.10889374]
[1772841872564,0.11576883,68165.0,68150.0,0.18226121]
[1772841873397,0.11576883,68165.0,68150.0,0.10889374]
[1772841873607,0.08576883,68165.0,68150.0,0.10889374]
[1772841874010,0.04335142,68165.0,68150.0,0.18226114]
[1772841874280,0.07335357,68163.0,68150.0,0.10889374]
[1772841874791,0.07335357,68163.0,68150.0,0.18226112]
[1772841875587,0.07335357,68163.0,68150.0,0.1822607]
[1772841876230,0.07335357,68163.0,68150.0,0.10889374]
[1772841876390,0.07335357,68163.0,68150.0,0.18226118]
[1772841879757,0.07335357,68163.0,68150.0,0.1822611]
[1772841879984,0.07335357,68163.0,68150.0,0.10889374]
[1772841880410,0.11590072,68163.0,68150.0,0.10889374]
[1772841880606,0.11448632,68163.0,68150.0,0.10889374]
[1772841881561,0.11433084,68163.0,68150.0,0.10889374]
[1772841883101,0.11433084,68163.0,68150.0,0.10909374]
[1772841884346,0.00148,68162.0,68150.0,0.10909374]
[1772841886604,0.07335573,68161.0,68150.0,0.10909374]
[1772841888119,0.07334905,68168.0,68150.0,0.07356679]
[1772841888297,0.06547128,68167.0,68150.0,0.07356679]
[1772841888500,0.07356498,68172.0,68150.0,0.0002]
[1772841888707,0.07482497,68171.0,68154.0,0.06716677]
[1772841888905,0.00148,68170.0,68157.0,0.04253055]
[1772841889111,0.00148,68169.0,68160.0,0.04253055]
[1772841889642,0.07334497,68171.0,68160.0,0.04253055]
[1772841889643,0.00148,68168.0,68160.0,0.04253055]
[1772841890020,0.00015819,68170.0,68160.0,0.04253055]
[1772841890218,0.00148,68169.0,68160.0,0.04253055]
[1772841890666,0.00148,68168.0,68159.0,0.06716677]
[1772841890809,0.06353297,68166.0,68150.0,0.07356722]
[1772841891016,0.04270263,68164.0,68150.0,0.07356722]
[1772841891662,0.04270263,68164.0,68150.0,0.0002]
[1772841891865,0.04270263,68162.0,68150.0,0.0002]
[1772841892085,0.04270263,68160.0,68150.0,0.0002]
[1772841892712,0.07335788,68159.0,68150.0,0.0002]
[1772841892913,0.04278141,68158.0,68150.0,0.0002]
[1772841893857,0.06353297,68158.0,68142.0,0.0002]
[1772841894062,0.04278141,68157.0,68142.0,0.0002]
[1772841894902,0.04696655,68153.0,68129.0,0.07359014]
[1772841895110,0.00148,68152.0,68129.0,0.0002]
[1772841895361,0.00148,68152.0,68136.0,0.00058581]
[1772841895587,0.1102989,68151.0,68136.0,0.00058581]
[1772841895772,0.00148,68152.0,68136.0,0.00058581]
[1772841895949,0.1102989,68151.0,68136.0,0.00058581]
[1772841896161,0.06353297,68139.0,68120.0,0.0791496]
[1772841896363,0.04676593,68138.0,68127.0,0.00030759]
[1772841896686,0.07931719,68136.0,68127.0,0.00030759]
[1772841897093,0.15270091,68135.0,68127.0,0.00030759]
[1772841897307,0.15270091,68135.0,68094.0,0.0001954]
[1772841897308,0.07931719,68119.0,68094.0,0.0001954]
[1772841897534,0.0004,68125.0,68094.0,0.0001954]
[1772841897535,0.0004,68125.0,68094.0,0.00029733]
[1772841897738,0.24962012,68135.0,68102.0,0.06308955]
[1772841897739,0.00148,68124.0,68102.0,0.06308955]
[1772841897939,0.00148,68123.0,68104.0,0.06279355]
[1772841898154,0.00148,68122.0,68104.0,0.06249755]
[1772841898355,0.00148,68121.0,68101.0,0.08136606]
[1772841898658,0.00148,68120.0,68100.0,0.0004]
[1772841898859,0.04415066,68119.0,68100.0,0.0004]
[1772841899069,0.04267066,68117.0,68100.0,0.0004]
[1772841899400,0.04267066,68115.0,68100.0,0.0004]
[1772841899802,0.11648685,68131.0,68100.0,0.0004]
[1772841899803,0.04267066,68126.0,68103.0,0.06229799]
[1772841900086,0.04267066,68124.0,68103.0,0.06229799]
[1772841900260,0.04267066,68124.0,68105.0,0.06260981]
[1772841900866,0.04267066,68124.0,68105.0,0.06229799]
[1772841901011,0.04267066,68124.0,68107.0,0.06229799]
[1772841901012,0.07487665,68123.0,68107.0,0.06229799]
[1772841901212,0.06300676,68122.0,68107.0,0.06220559]
[1772841901421,0.07339665,68126.0,68105.0,0.07341497]
[1772841901422,0.00148,68121.0,68106.0,0.08136606]
[1772841901639,0.07337295,68145.0,68108.0,1.026887]
[1772841901919,0.00775,68150.0,68107.0,0.03234816]
[1772841901920,0.0811176,68150.0,68110.0,2.279723]
[1772841902132,0.00022001,68167.0,68107.0,0.03234816]
[1772841902133,0.06300676,68163.0,68126.0,0.06167877]
[1772841902336,0.06291436,68159.0,68128.0,0.06167877]
[1772841902722,0.08654041,68158.0,68128.0,0.06167877]
[1772841903179,0.07336003,68157.0,68130.0,0.06167877]
[1772841903367,0.00148,68156.0,68130.0,0.06167877]
[1772841903772,0.07336003,68157.0,68130.0,0.06167877]
[1772841903979,0.00148,68156.0,68130.0,0.06167877]
[1772841904443,0.07336003,68157.0,68130.0,0.06167877]
[1772841904643,0.00148,68156.0,68130.0,0.06167877]
[1772841904843,0.00148,68156.0,68130.0,0.06267877]
[1772841905083,0.07336326,68154.0,68131.0,0.07338803]
[1772841905287,0.07336326,68154.0,68132.0,0.06167877]
[1772841905492,0.07336326,68154.0,68133.0,0.00148]
[1772841905694,0.00148,68153.0,68134.0,0.06167877]
[1772841906028,0.00148,68152.0,68134.0,0.06167877]
[1772841906350,0.00148,68151.0,68134.0,0.06167877]
[1772841906763,0.07336326,68154.0,68134.0,0.06167877]
[1772841907002,0.00148,68153.0,68134.0,0.06167877]
[1772841907332,0.07336541,68152.0,68136.0,0.06167877]
[1772841907719,0.00148,68151.0,68136.0,0.06167877]
[1772841908344,0.00148,68150.0,68136.0,0.06167877]
[1772841909183,0.07336326,68156.0,68137.0,0.07338156]
[1772841909382,0.00148,68155.0,68138.0,0.06167877]
[1772841909605,0.00148,68154.0,68138.0,0.06167877]
[1772841910031,0.07336326,68156.0,68138.0,0.06167877]
[1772841910233,0.00148,68153.0,68138.0,0.06167877]
[1772841910573,0.00148,68152.0,68138.0,0.06167877]
[1772841910978,0.07336326,68156.0,68138.0,0.06167877]
[1772841911189,0.00148,68155.0,68138.0,0.06167877]
[1772841911630,0.00148,68154.0,68140.0,0.06167877]
[1772841912165,0.00148,68153.0,68140.0,0.06167877]
[1772841912368,0.00148,68155.0,68140.0,0.06167877]
[1772841912593,0.07335122,68166.0,68140.0,0.00011559]
[1772841912784,0.00148,68163.0,68141.0,0.06167877]
[1772841913618,0.07357186,68165.0,68142.0,0.07337618]
[1772841913791,0.00148,68163.0,68143.0,0.06167877]
[1772841914201,0.07357186,68165.0,68143.0,0.06167877]
[1772841914408,0.00148,68163.0,68143.0,0.06167877]
[1772841914810,0.00148,68162.0,68143.0,0.06167877]
[1772841915243,0.07357186,68165.0,68143.0,0.06267877]
[1772841915424,0.00148,68162.0,68143.0,0.06267877]
[1772841915804,0.00148,68162.0,68145.0,0.06167877]
[1772841916189,0.00148,68162.0,68147.0,0.06167877]
[1772841917455,0.00148,68162.0,68146.0,0.00148]
[1772841917616,0.10487305,68162.0,68146.0,0.00148]
[1772841917853,0.17674795,68162.0,68147.0,0.0733708]
[1772841918051,0.00148,68161.0,68148.0,0.06167877]
[1772841918501,0.00148,68160.0,68148.0,0.06167877]
[1772841918864,0.17674795,68162.0,68148.0,0.06167877]
[1772841919069,0.00148,68161.0,68148.0,0.06167877]
[1772841919481,0.00148,68160.0,68148.0,0.06167877]
[1772841920031,0.00148,68160.0,68150.0,0.06167877]
[1772841920346,0.00148,68159.0,68150.0,0.06167877]
[1772841920755,0.00022001,68162.0,68150.0,0.06167877]
[1772841920906,0.00148,68158.0,68150.0,0.06167877]
[1772841921599,0.00148,68158.0,68149.0,0.07336864]
[1772841922218,0.10295275,68162.0,68149.0,0.07336864]
[1772841922490,0.00148,68158.0,68149.0,0.07336864]
[1772841922698,0.10295275,68162.0,68149.0,0.07336864]
[1772841922919,0.00148,68158.0,68149.0,0.13504741]
[1772841924219,0.10295275,68162.0,68149.0,0.13504741]
[1772841924420,0.00148,68159.0,68150.0,0.06167877]
[1772841924780,0.10295275,68162.0,68150.0,0.06167877]
[1772841924952,0.00148,68159.0,68150.0,0.06167877]
[1772841925756,0.10295275,68162.0,68150.0,0.06167877]
[1772841925967,0.00148,68159.0,68150.0,0.06167877]
[1772841926381,0.00148,68159.0,68151.0,0.07336649]
[1772841926680,0.10295275,68162.0,68151.0,0.07336649]
[1772841926896,0.00148,68161.0,68151.0,0.07336649]
[1772841927338,0.00148,68160.0,68151.0,0.07336649]
[1772841927740,0.10295275,68162.0,68151.0,0.07336649]
[1772841927945,0.00148,68159.0,68151.0,0.07336649]
[1772841928732,0.10295275,68162.0,68151.0,0.07336649]
[1772841928966,0.00148,68159.0,68151.0,0.07336649]
[1772841929743,0.00022001,68162.0,68151.0,0.07336649]
[1772841929949,0.00148,68159.0,68151.0,0.07336649]
[1772841930859,0.00022001,68162.0,68151.0,0.07336649]
[1772841931029,0.00148,68159.0,68151.0,0.07336649]
[1772841932665,0.00022001,68162.0,68151.0,0.07336649]
[1772841932889,0.00148,68159.0,68151.0,0.07336649]
[1772841933158,0.00022001,68162.0,68151.0,0.07336649]
[1772841933354,0.00148,68159.0,68151.0,0.07336649]
[1772841933737,0.00148,68158.0,68151.0,0.07336649]
[1772841933935,1e-08,68165.0,68152.0,0.1483]
[1772841934141,0.00022001,68169.0,68153.0,0.05957038]
[1772841934476,0.00148,68169.0,68160.0,0.05957038]
[1772841934640,0.00148,68170.0,68160.0,0.05957038]
[1772841934964,0.00148,68170.0,68153.0,0.22166434]
[1772841934965,0.00170001,68170.0,68154.0,0.05957038]
[1772841935816,0.00022001,68170.0,68154.0,0.05957038]
[1772841936028,0.00170001,68170.0,68154.0,0.05957038]
[1772841936428,0.00170001,68170.0,68155.0,0.07336218]
[1772841936675,0.00170001,68170.0,68156.0,0.05957038]
[1772841936877,0.00022001,68170.0,68156.0,0.05957038]
[1772841937057,0.00170001,68170.0,68156.0,0.05957038]
[1772841938472,0.00022001,68170.0,68157.0,0.07336003]
[1772841938640,0.00170001,68170.0,68157.0,0.13293041]
[1772841939432,0.00022001,68170.0,68157.0,0.13293041]
[1772841939637,0.00170001,68170.0,68157.0,0.13293041]
[1772841939838,0.00170001,68170.0,68157.0,0.07336003]
[1772841940039,0.00170001,68170.0,68158.0,0.05957038]
[1772841940441,0.00022001,68170.0,68159.0,0.07335788]
[1772841940660,0.00170001,68170.0,68159.0,0.07335788]
[1772841941388,0.00022001,68170.0,68159.0,0.07335788]
[1772841941590,0.00170001,68170.0,68159.0,0.07335788]
[1772841942016,0.00022001,68170.0,68159.0,0.07335788]
[1772841942160,0.00170001,68170.0,68159.0,0.07335788]
[1772841942566,0.00148,68169.0,68159.0,0.0731868]
[1772841943896,0.00022001,68170.0,68159.0,0.0731868]
[1772841944235,0.00148,68169.0,68159.0,0.0731868]
[1772841944407,0.00022001,68170.0,68159.0,0.0731868]
[1772841944616,0.00148,68169.0,68159.0,0.0731868]
[1772841945022,0.10805433,68167.0,68144.0,0.0002]
[1772841945220,0.06456823,68164.0,68146.0,0.07337134]
[1772841945423,0.10805433,68162.0,68146.0,0.07337134]
[1772841945641,0.10805433,68160.0,68146.0,0.07337134]
[1772841946648,0.09364132,68158.0,68144.0,0.07357295]
[1772841948437,0.09364132,68158.0,68151.0,0.0002]
[1772841948843,0.09364132,68156.0,68151.0,0.0002]
[1772841949042,0.09364132,68154.0,68151.0,0.0002]
[1772841954283,0.09364132,68154.0,68144.0,0.07357295]
[1772841954972,0.00148,68155.0,68144.0,0.07357295]
[1772841955573,0.09512132,68155.0,68151.0,0.0002]
[1772841956114,0.00148,68155.0,68151.0,0.0002]
[1772841956458,0.00148,68156.0,68151.0,0.0002]
[1772841956875,0.09364132,68160.0,68151.0,0.0002]
[1772841957075,0.00148,68159.0,68151.0,0.0002]
[1772841957481,0.00148,68158.0,68151.0,0.0002]
[1772841958009,0.00148,68157.0,68151.0,0.0002]
[1772841958563,0.00148,68156.0,68151.0,0.0002]